bitfinex/quotes_SOLUSD_20220228
["timestamp","ask_amount","ask_price","bid_price","bid_amount"]
[1646081266001,19.36309176,98.476,98.383,5.5140976]
[1646081266403,47.1933,98.495,98.384,2.74678921]
[1646081266701,1.47041763,98.494,98.385,23.4354]
[1646081267100,1.47041763,98.494,98.386,2.74678921]
[1646081267301,1.47041763,98.494,98.386,5.3774573]
[1646081267502,21.49378949,98.493,98.386,5.3774573]
[1646081267705,1.85090488,98.492,98.387,2.74678921]
[1646081268906,21.49378949,98.493,98.387,5.26465689]
[1646081269106,47.1933,98.495,98.401,102.2]
[1646081269308,47.1933,98.495,98.4,12.46]
[1646081269506,47.1933,98.495,98.402,25.66141891]
[1646081269708,0.825,98.5,98.403,2.98798489]
[1646081270009,0.825,98.5,98.405,104.84984416]
[1646081270210,0.825,98.5,98.42,12.46]
[1646081270408,0.825,98.5,98.422,2.83641312]
[1646081271010,0.825,98.5,98.424,102.2]
[1646081271208,0.825,98.5,98.425,56.64109626]
[1646081271408,0.825,98.5,98.427,3.12334472]
[1646081271610,48.2635,98.581,98.43,2.68272342]
[1646081271811,48.2635,98.581,98.426,63.24429281]
[1646081271812,1.75956558,98.58,98.442,2.65339926]
[1646081272010,1.75956558,98.58,98.444,104.99040348]
[1646081272209,1.75956558,98.58,98.445,2.73436695]
[1646081272408,48.2635,98.581,98.445,2.73436695]
[1646081272409,17.97813642,98.579,98.445,28.39578586]
[1646081272609,17.97813642,98.579,98.447,2.75069864]
[1646081272812,17.97813642,98.579,98.461,102.2]
[1646081273009,17.97813642,98.579,98.462,62.08206028]
[1646081273209,17.97813642,98.579,98.463,3.04236716]
[1646081273408,1.86554306,98.578,98.463,3.04236716]
[1646081273609,1.86554306,98.578,98.464,2.74678921]
[1646081274010,1.49884447,98.577,98.464,2.74678921]
[1646081274211,1.49884447,98.577,98.462,59.49092292]
[1646081274612,163.5,98.57,98.462,59.49092292]
[1646081274832,1.45808476,98.569,98.462,59.49092292]
[1646081277212,1.48556462,98.577,98.462,59.49092292]
[1646081277512,102.2,98.571,98.462,62.23771213]
[1646081277712,1.48442533,98.571,98.463,2.91729016]
[1646081277913,1.48442533,98.571,98.462,59.49092292]
[1646081277914,1.44985779,98.577,98.462,59.49092292]
[1646081278111,1.44985779,98.577,98.463,28.40820812]
[1646081278511,103.64985779,98.577,98.463,2.74678921]
[1646081278712,102.2,98.577,98.463,2.74678921]
[1646081278913,1.50129818,98.576,98.462,59.49092292]
[1646081279114,61.3,98.574,98.462,59.49092292]
[1646081279313,61.3,98.572,98.462,59.49092292]
[1646081279513,1.6754237,98.571,98.463,2.74678921]
[1646081279713,2.74678921,98.55,98.449,4.061]
[1646081280215,2.74678921,98.55,98.447,15.0772]
[1646081280216,1.83070524,98.538,98.447,15.0772]
[1646081280415,61.3,98.529,98.422,15.1272]
[1646081280613,169.15801712,98.529,98.423,47.8201264]
[1646081280813,1.39223053,98.528,98.423,47.8201264]
[1646081281013,2.74678921,98.522,98.423,47.8201264]
[1646081281214,1.39223053,98.528,98.423,47.8201264]
[1646081281414,3.84442128,98.529,98.424,2.74678921]
[1646081281616,3.84442128,98.529,98.425,4.062]
[1646081281913,2.74678921,98.522,98.424,2.74678921]
[1646081282114,2.74678921,98.522,98.43,12.46]
[1646081282333,3.84442128,98.529,98.43,12.46]
[1646081282513,3.84442128,98.529,98.431,2.74678921]
[1646081283017,3.84442128,98.529,98.43,12.46]
[1646081283018,61.3,98.528,98.432,4.061]
[1646081283215,1.58301322,98.527,98.423,47.8201264]
[1646081283616,1.66178834,98.526,98.423,47.8201264]
[1646081284620,1.66178834,98.526,98.416,2.74678921]
[1646081284820,163.5,98.519,98.408,4.062]
[1646081285020,1.654492,98.518,98.395,4.062]
[1646081285221,1.85494008,98.516,98.395,4.062]
[1646081285419,27.60578921,98.518,98.395,4.062]
[1646081285420,2.74678921,98.518,98.396,2.74678921]
[1646081285622,1.5464143,98.546,98.41,12.46]
[1646081285821,1.5464143,98.546,98.412,3.05240915]
[1646081286020,1.44565068,98.569,98.412,3.05240915]
[1646081286228,1.44565068,98.569,98.412,28.60436806]
[1646081286429,165.12820941,98.567,98.414,2.88116242]
[1646081286730,1.72202306,98.534,98.415,25.65332]
[1646081286928,1.86296722,98.565,98.416,2.69135122]
[1646081287130,4.062,98.564,98.43,12.46]
[1646081287329,4.062,98.564,98.431,47.37602311]
[1646081287532,1.86296722,98.565,98.432,128.57738952]
[1646081287731,1.86296722,98.565,98.433,2.63381786]
[1646081288031,102.2,98.558,98.433,5.38060707]
[1646081288233,102.2,98.556,98.433,5.38060707]
[1646081288430,1.39903384,98.555,98.434,2.74678921]
[1646081290040,24.3124,98.556,98.434,2.74678921]
[1646081290239,24.3124,98.556,98.434,28.40010921]
[1646081290440,24.3124,98.556,98.435,2.65186631]
[1646081290742,1.76047294,98.555,98.45,12.46]
[1646081290941,1.86853657,98.554,98.45,12.46]
[1646081291144,1.86853657,98.554,98.451,2.74678921]
[1646081291741,61.3,98.547,98.451,2.74678921]
[1646081291940,1.3704286,98.546,98.451,2.74678921]
[1646081292841,1.50658544,98.555,98.451,2.74678921]
[1646081294246,102.2,98.549,98.451,2.74678921]
[1646081294447,102.2,98.539,98.451,2.74678921]
[1646081294647,102.2,98.537,98.432,23.8716]
[1646081294848,1.53214045,98.536,98.432,23.8716]
[1646081295449,2.74678921,98.561,98.452,102.2]
[1646081295649,47.6637,98.651,98.481,102.2]
[1646081295852,1.63185451,98.65,98.49,168.23]
[1646081296049,1.63185451,98.65,98.5,12.46]
[1646081296249,1.63185451,98.65,98.491,26.50756452]
[1646081296250,1.63185451,98.65,98.51,12.46]
[1646081296450,102.2,98.626,98.51,12.46]
[1646081296651,102.2,98.618,98.51,12.46]
[1646081296851,61.3,98.603,98.51,12.46]
[1646081297151,61.3,98.599,98.51,12.46]
[1646081297350,163.5,98.591,98.51,12.46]
[1646081297556,1.82471018,98.59,98.51,12.46]
[1646081299557,1.82471018,98.59,98.501,23.9767]
[1646081299760,5.0,98.589,98.49,8.22103195]
[1646081300060,1.79273835,98.586,98.49,12.46]
[1646081300259,4.32620139,98.585,98.491,50.40618668]
[1646081300559,4.32620139,98.585,98.47,12.46]
[1646081301258,4.32620139,98.585,98.471,2.74678921]
[1646081301460,4.32620139,98.585,98.472,60.25375591]
[1646081301659,4.32620139,98.585,98.472,84.66796608]
[1646081301858,4.32620139,98.585,98.473,2.74678921]
[1646081303262,4.32620139,98.585,98.474,24.41421017]
[1646081303565,4.32620139,98.585,98.475,2.74678921]
[1646081305164,4.32620139,98.585,98.476,22.9166]
[1646081305366,4.32620139,98.585,98.48,12.46]
[1646081305765,4.32620139,98.585,98.481,2.74678921]
[1646081308972,4.32620139,98.585,98.481,27.16099938]
[1646081309370,4.32620139,98.585,98.482,2.74678921]
[1646081309770,163.5,98.581,98.482,2.74678921]
[1646081309969,1.55023191,98.58,98.482,2.74678921]
[1646081310370,1.55023191,98.58,98.48,12.46]
[1646081310571,1.55023191,98.58,98.476,22.9166]
[1646081310970,1.55023191,98.58,98.462,2.74678921]
[1646081311171,1.68766488,98.578,98.462,2.74678921]
[1646081311571,1.68766488,98.578,98.449,2.74678921]
[1646081311771,1.68766488,98.578,98.445,47.5838]
[1646081312271,4.059,98.577,98.445,47.5838]
[1646081312472,1.68766488,98.578,98.464,48.43903727]
[1646081314273,1.68766488,98.578,98.465,2.74678921]
[1646081314475,1.68766488,98.578,98.464,48.43903727]
[1646081316999,163.5,98.576,98.464,48.43903727]
[1646081317300,12.76464059,98.575,98.42,62.46]
[1646081317500,167.559,98.574,98.42,50.0]
[1646081317700,12.46,98.56,98.42,50.0]
[1646081317900,1.51366569,98.558,98.42,50.0]
[1646081318098,163.5,98.555,98.455,44.08255886]
[1646081318300,4.059,98.554,98.455,44.08255886]
[1646081318499,163.5,98.537,98.455,44.08255886]
[1646081318700,163.5,98.529,98.455,44.08255886]
[1646081319002,1.39049449,98.528,98.463,1434.5]
[1646081319300,1.39049449,98.528,98.463,1394.5]
[1646081319900,1.39049449,98.528,98.464,48.70240554]
[1646081320301,1.39049449,98.528,98.463,1394.5]
[1646081320701,1.39049449,98.528,98.463,1379.5]
[1646081321504,1.39049449,98.528,98.463,1254.5]
[1646081321505,4.1372837,98.528,98.463,1254.5]
[1646081323305,4.1372837,98.528,98.463,699.5]
[1646081323306,163.5,98.527,98.463,699.5]
[1646081323506,163.5,98.525,98.463,690.1611]
[1646081323704,102.2,98.521,98.463,690.1611]
[1646081323904,163.5,98.509,98.463,690.1611]
[1646081324108,1.74920978,98.508,98.463,690.1611]
[1646081324506,2.74678921,98.507,98.463,690.1611]
[1646081325207,163.5,98.505,98.463,690.1611]
[1646081325508,163.5,98.487,98.463,690.1611]
[1646081325709,1.4593092,98.486,98.463,690.1611]
[1646081327009,102.2,98.482,98.463,690.1611]
[1646081327210,61.3,98.481,98.463,690.1611]
[1646081327610,1.61253356,98.494,98.463,690.1611]
[1646081327809,62.88923852,98.502,98.463,690.1611]
[1646081328010,61.3,98.502,98.463,690.1611]
[1646081328211,1.55999272,98.528,98.463,690.1611]
[1646081328611,61.3,98.528,98.464,55.69391551]
[1646081328812,1.66082016,98.527,98.464,55.69391551]
[1646081329215,62.96082016,98.527,98.464,55.69391551]
[1646081329413,1.55183607,98.526,98.464,55.69391551]
[1646081329614,61.3,98.525,98.464,55.69391551]
[1646081329815,61.3,98.521,98.464,55.69391551]
[1646081330015,1.6968504,98.52,98.464,55.69391551]
[1646081330815,61.3,98.523,98.464,55.69391551]
[1646081331115,1.80609422,98.522,98.464,55.69391551]
[1646081332319,24.8809,98.529,98.464,55.69391551]
[1646081332518,112.7,98.59,98.464,55.69391551]
[1646081332718,1.82895027,98.554,98.464,55.69391551]
[1646081333320,61.3,98.552,98.464,55.69391551]
[1646081333523,1.88579728,98.551,98.464,55.69391551]
[1646081334222,102.2,98.547,98.464,55.69391551]
[1646081337523,61.3,98.548,98.464,55.69391551]
[1646081337723,101.7,98.546,98.464,55.69391551]
[1646081337925,101.7,98.544,98.464,55.69391551]
[1646081341325,163.0,98.543,98.464,55.69391551]
[1646081342128,1.52531801,98.542,98.464,55.69391551]
[1646081344427,0.52531801,98.542,98.463,690.1611]
[1646081345428,0.52531801,98.542,98.464,42.72123978]
[1646081345628,163.0,98.539,98.464,42.72123978]
[1646081345828,2.68697509,98.538,98.464,42.72123978]
[1646081346027,3.84836607,98.538,98.464,42.72123978]
[1646081348636,2.68697509,98.538,98.464,42.72123978]
[1646081349939,61.3,98.538,98.464,42.72123978]
[1646081350636,102.2,98.537,98.464,42.72123978]
[1646081351534,61.3,98.551,98.465,3.07798596]
[1646081352436,61.3,98.549,98.465,3.07798596]
[1646081352635,61.3,98.547,98.465,3.07798596]
[1646081353438,61.3,98.545,98.465,3.07798596]
[1646081353641,1.57006429,98.544,98.463,690.1611]
[1646081353840,61.3,98.545,98.463,690.1611]
[1646081354041,61.3,98.545,98.464,3.02303571]
[1646081354441,61.3,98.545,98.465,50.16119832]
[1646081354644,61.3,98.544,98.465,50.16119832]
[1646081355241,61.3,98.544,98.465,52.58528514]
[1646081355642,61.3,98.549,98.465,52.58528514]
[1646081355842,22.03285745,98.55,98.466,2.7441544]
[1646081356441,163.5,98.549,98.466,2.7441544]
[1646081356642,163.5,98.549,98.465,50.16119832]
[1646081358663,163.5,98.549,98.463,690.1611]
[1646081358866,1.39033591,98.548,98.463,690.1611]
[1646081359066,163.5,98.547,98.463,690.1611]
[1646081359265,1.78727249,98.546,98.463,690.1611]
[1646081359869,1.79445691,98.544,98.463,690.1611]
[1646081360068,12.46,98.54,98.463,690.1611]
[1646081360268,1.68143177,98.538,98.463,690.1611]
[1646081362373,1.83180598,98.535,98.463,690.1611]
[1646081362569,163.5,98.529,98.463,690.1611]
[1646081362770,164.98470394,98.529,98.463,690.1611]
[1646081362971,1.71920458,98.528,98.463,690.1611]
[1646081364174,4.46599379,98.528,98.463,690.1611]
[1646081365871,102.2,98.519,98.463,690.1611]
[1646081366072,102.2,98.501,98.463,690.1611]
[1646081366272,61.3,98.488,98.463,657.45947824]
[1646081366471,102.2,98.477,98.463,651.47616444]
[1646081366671,163.5,98.464,98.463,641.37226662]
[1646081366872,166.09694344,98.464,98.463,641.37226662]
[1646081367172,166.09694344,98.464,98.463,616.93099424]
[1646081368177,163.5,98.464,98.463,616.93099424]
[1646081369073,178.4826,98.464,98.463,616.93099424]
[1646081369275,178.4826,98.464,98.463,457.87243068]
[1646081369473,178.4826,98.464,98.463,442.57546806]
[1646081369674,178.4826,98.464,98.463,429.5363597]
[1646081369876,61.3,98.462,98.42,46.3641]
[1646081370079,102.2,98.459,98.42,19.1593]
[1646081370276,102.2,98.447,98.42,19.1593]
[1646081370476,12.46,98.46,98.42,19.1593]
[1646081370477,61.3,98.424,98.42,19.1593]
[1646081370676,163.5,98.421,98.42,19.1593]
[1646081371278,163.5,98.421,98.42,10.11654353]
[1646081372177,2.74678921,98.423,98.42,10.11654353]
[1646081372777,2.74678921,98.423,98.42,10.55180006]
[1646081372979,1.68089848,98.462,98.42,10.55180006]
[1646081372980,2.74678921,98.459,98.42,10.55180006]
[1646081373380,2.74678921,98.459,98.42,10.11654353]
[1646081373578,61.3,98.458,98.42,10.11654353]
[1646081373779,61.3,98.454,98.42,10.11654353]
[1646081374179,102.2,98.443,98.42,10.11654353]
[1646081374380,61.3,98.434,98.42,10.11654353]
[1646081375485,61.3,98.468,98.42,10.11654353]
[1646081376586,61.3,98.468,98.421,2.74678921]
[1646081376787,1.40399852,98.545,98.423,2.99586584]
[1646081376990,12.46,98.56,98.423,2.99586584]
[1646081377189,4.061,98.568,98.424,28.51020863]
[1646081377388,13.3737931,98.554,98.425,2.85153808]
[1646081377589,4.061,98.568,98.425,2.85153808]
[1646081377794,4.061,98.568,98.44,155.77]
[1646081377992,4.061,98.599,98.441,49.70881284]
[1646081378189,4.061,98.599,98.45,12.46]
[1646081378396,4.061,98.616,98.46,155.77]
[1646081378588,4.061,98.616,98.463,102.2]
[1646081378791,4.059,98.65,98.464,3.04299791]
[1646081378990,22.50501148,98.655,98.47,270.43]
[1646081379188,4.059,98.641,98.471,2.45424996]
[1646081379389,4.059,98.641,98.471,18.00730564]
[1646081379588,4.059,98.641,98.472,2.35686544]
[1646081379791,8.97455593,98.64,98.472,5.10365465]
[1646081379990,34.96501148,98.64,98.473,2.74678921]
[1646081380190,1.42861234,98.639,98.473,2.74678921]
[1646081380390,45.98475847,98.639,98.473,2.74678921]
[1646081380590,22.05113465,98.638,98.473,2.74678921]
[1646081380889,1.65815192,98.637,98.473,2.74678921]
[1646081381091,22.50501148,98.637,98.473,2.74678921]
[1646081381290,22.50501148,98.636,98.473,2.74678921]
[1646081381491,102.2,98.635,98.473,2.74678921]
[1646081381689,5.47693557,98.634,98.473,2.74678921]
[1646081381889,12.46,98.63,98.473,2.74678921]
[1646081382093,1.63935852,98.629,98.473,2.74678921]
[1646081382291,12.46,98.63,98.474,23.91703002]
[1646081382490,12.46,98.63,98.475,2.30097081]
[1646081382789,1.40601008,98.641,98.476,27.03755626]
[1646081382993,1.40601008,98.641,98.49,12.46]
[1646081383389,1.40601008,98.641,98.491,23.91703002]
[1646081383611,22.50501148,98.64,98.492,45.55611083]
[1646081383789,1.76828692,98.639,98.493,2.63316992]
[1646081384189,163.5,98.629,98.493,2.74678921]
[1646081384393,1.5303919,98.628,98.492,43.00987715]
[1646081384590,163.5,98.627,98.492,43.00987715]
[1646081384790,1.37114187,98.626,98.492,43.00987715]
[1646081384991,1.83841969,98.624,98.492,43.00987715]
[1646081385200,12.46,98.61,98.492,43.00987715]
[1646081385393,1.83844587,98.608,98.492,43.00987715]
[1646081385793,1.83844587,98.608,98.493,2.93958482]
[1646081386094,61.3,98.637,98.493,2.93958482]
[1646081386095,4.057,98.633,98.493,29.60340405]
[1646081386292,4.057,98.633,98.494,15.19772234]
[1646081386493,4.057,98.633,98.495,2.45360672]
[1646081386693,4.057,98.633,98.51,114.66]
[1646081386992,12.46,98.69,98.511,84.4087721]
[1646081387193,4.057,98.7,98.52,155.77]
[1646081387395,4.056,98.706,98.531,46.92045418]
[1646081387593,4.056,98.699,98.54,12.46]
[1646081387992,4.054,98.706,98.541,15.19772234]
[1646081388195,4.054,98.706,98.542,104.92687244]
[1646081388395,4.054,98.713,98.552,55.9357973]
[1646081388592,4.054,98.713,98.56,12.46]
[1646081388792,4.054,98.713,98.56,114.66]
[1646081388992,112.7,98.714,98.561,23.91703002]
[1646081389192,112.7,98.714,98.562,2.50884579]
[1646081389393,112.7,98.714,98.562,21.11345197]
[1646081389593,1.64092902,98.713,98.563,23.91703002]
[1646081389794,1.64092902,98.713,98.564,2.35568275]
[1646081389994,112.7,98.714,98.564,23.86024118]
[1646081390295,1.8431575,98.739,98.565,47.7772712]
[1646081390493,4.054,98.75,98.566,2.61080074]
[1646081390698,4.054,98.75,98.58,168.23]
[1646081390895,5.77774541,98.754,98.58,12.46]
[1646081391122,4.054,98.754,98.59,155.77]
[1646081391295,4.054,98.749,98.591,50.34442819]
[1646081391495,4.054,98.749,98.6,12.46]
[1646081391696,5.58513626,98.767,98.6,12.46]
[1646081392098,24.03614774,98.767,98.601,26.66381923]
[1646081392297,1.87120811,98.766,98.602,2.87842619]
[1646081392496,102.2,98.766,98.602,5.6252154]
[1646081392697,163.5,98.757,98.602,5.6252154]
[1646081392896,1.36660756,98.756,98.6,12.46]
[1646081393098,102.2,98.755,98.601,2.95672858]
[1646081393299,163.5,98.739,98.6,12.46]
[1646081393497,1.6926538,98.738,98.6,12.46]
[1646081393898,22.50501148,98.737,98.6,12.46]
[1646081394099,1.69248996,98.736,98.6,12.46]
[1646081394499,22.50501148,98.735,98.6,12.46]
[1646081394700,1.52994143,98.733,98.6,12.46]
[1646081394902,0.41,98.707,98.566,2.74678921]
[1646081395301,0.41,98.697,98.52,12.46]
[1646081395505,0.41,98.687,98.502,2.7089935]
[1646081395702,102.2,98.676,98.561,60.7559492]
[1646081395913,1.82249124,98.675,98.561,60.7559492]
[1646081396103,12.46,98.67,98.542,2.54340038]
[1646081396303,1.84107416,98.669,98.542,2.54340038]
[1646081396706,2.74678921,98.668,98.542,2.54340038]
[1646081397205,2.74678921,98.668,98.565,43.77820436]
[1646081397607,61.3,98.659,98.542,2.54340038]
[1646081397809,61.3,98.659,98.524,2.74678921]
[1646081398008,2.74678921,98.658,98.525,2.60883381]
[1646081398209,4.46859303,98.658,98.53,12.46]
[1646081398414,4.46859303,98.658,98.542,3.04548376]
[1646081398624,4.46859303,98.658,98.565,46.07120893]
[1646081398825,1.41002531,98.657,98.565,46.07120893]
[1646081399225,1.41002531,98.657,98.565,45.57120893]
[1646081399424,1.41002531,98.657,98.542,3.04548376]
[1646081399626,2.74678921,98.656,98.542,3.04548376]
[1646081399825,12.46,98.66,98.542,3.04548376]
[1646081400226,65.45815867,98.659,98.503,2.52421245]
[1646081400425,65.45815867,98.659,98.559,50.02507295]
[1646081400426,1.60853365,98.658,98.559,50.02507295]
[1646081400627,4.35532286,98.658,98.559,50.02507295]
[1646081400827,2.74678921,98.658,98.559,50.02507295]
[1646081401029,1.5119545,98.696,98.56,15.55919894]
[1646081401227,4.056,98.687,98.565,34.3376512]
[1646081401427,4.056,98.687,98.566,105.00246324]
[1646081401628,4.056,98.684,98.58,12.46]
[1646081401925,4.056,98.684,98.583,2.25454872]
[1646081402326,4.056,98.68,98.583,2.25454872]
[1646081402527,4.056,98.68,98.584,31.39276553]
[1646081402729,1.51342096,98.736,98.584,31.39276553]
[1646081402730,4.056,98.676,98.585,2.25471596]
[1646081402930,4.056,98.676,98.585,5.00150517]
[1646081403129,4.056,98.681,98.586,2.74678921]
[1646081403329,4.056,98.681,98.6,12.46]
[1646081403530,4.056,98.696,98.601,46.58128842]
[1646081403727,15.1154,98.752,98.601,46.58128842]
[1646081403728,4.054,98.715,98.602,2.83088481]
[1646081403928,5.76958547,98.755,98.602,2.83088481]
[1646081404128,102.2,98.754,98.602,5.57767402]
[1646081404331,1.47728282,98.753,98.603,2.74678921]
[1646081404530,4.054,98.735,98.603,2.74678921]
[1646081404831,4.054,98.735,98.604,61.3]
[1646081405032,4.054,98.735,98.611,2.58629356]
[1646081405230,4.054,98.735,98.612,2.9711518]
[1646081405435,4.054,98.735,98.632,102.2]
[1646081405633,4.054,98.735,98.65,155.77]
[1646081405831,4.054,98.725,98.651,60.51627938]
[1646081406034,4.054,98.725,98.652,2.72660171]
[1646081406230,4.054,98.735,98.66,12.46]
[1646081407331,4.054,98.755,98.66,12.46]
[1646081407530,4.053,98.753,98.661,2.74678921]
[1646081407731,4.053,98.753,98.66,12.46]
[1646081407933,4.053,98.754,98.66,12.46]
[1646081408332,4.053,98.766,98.66,12.46]
[1646081408535,3.553,98.766,98.66,12.46]
[1646081408832,1.80293339,98.789,98.66,12.46]
[1646081409034,4.053,98.775,98.661,55.79832092]
[1646081409434,1.49734086,98.786,98.66,12.46]
[1646081409636,12.46,98.78,98.66,12.46]
[1646081409834,1.55925136,98.779,98.66,12.46]
[1646081410035,2.74678921,98.793,98.66,12.46]
[1646081410436,2.74678921,98.793,98.661,54.44362334]
[1646081410634,61.3,98.789,98.661,54.44362334]
[1646081410834,1.86207622,98.788,98.661,54.44362334]
[1646081411634,102.2,98.767,98.66,12.46]
[1646081411937,1.64910958,98.766,98.581,2.63400344]
[1646081412136,1.72775049,98.764,98.62,12.46]
[1646081412336,61.3,98.747,98.62,12.46]
[1646081412537,102.2,98.746,98.59,12.46]
[1646081412737,62.67163279,98.745,98.6,80.0]
[1646081412936,102.2,98.73,98.6,80.0]
[1646081413136,102.2,98.718,98.6,80.0]
[1646081413337,102.2,98.706,98.6,80.0]
[1646081413537,1.62520561,98.705,98.6,80.0]
[1646081413735,4.37199482,98.705,98.6,80.0]
[1646081413936,2.74678921,98.704,98.6,80.0]
[1646081414137,102.2,98.699,98.6,80.0]
[1646081414337,102.2,98.697,98.6,80.0]
[1646081414540,1.71113774,98.696,98.6,80.0]
[1646081414738,4.45792695,98.696,98.6,80.0]
[1646081414939,2.74678921,98.696,98.6,80.0]
[1646081415138,1.44593922,98.736,98.6,80.0]
[1646081415338,1.60926337,98.729,98.601,44.89526347]
[1646081415640,61.3,98.719,98.601,44.89526347]
[1646081415840,61.3,98.703,98.6,80.0]
[1646081416040,102.2,98.696,98.6,80.0]
[1646081416240,1.64288044,98.695,98.6,80.0]
[1646081416440,4.38966965,98.695,98.6,80.0]
[1646081416641,102.2,98.686,98.6,80.0]
[1646081416842,1.76852517,98.685,98.6,80.0]
[1646081417245,2.74678921,98.722,98.6,80.0]
[1646081417543,1.63200819,98.719,98.6,80.0]
[1646081417942,2.74678921,98.718,98.6,80.0]
[1646081418344,4.53241923,98.718,98.6,80.0]
[1646081418742,2.74678921,98.717,98.6,80.0]
[1646081419142,2.74678921,98.717,98.6,92.46]
[1646081419942,1.75405513,98.725,98.6,92.46]
[1646081420143,2.74678921,98.735,98.601,2.74678921]
[1646081420343,2.74678921,98.735,98.601,5.59182011]
[1646081420744,2.74678921,98.735,98.601,23.00820565]
[1646081421146,4.57334211,98.735,98.6,92.46]
[1646081421346,1.47044991,98.734,98.6,92.46]
[1646081421544,8.27023912,98.734,98.6,92.46]
[1646081421744,6.79978921,98.734,98.602,2.59481193]
[1646081421945,5.3593902,98.72,98.602,2.59481193]
[1646081422146,5.3593902,98.72,98.603,2.74678921]
[1646081422346,5.3593902,98.72,98.604,46.18348927]
[1646081422547,5.3593902,98.72,98.605,105.01551289]
[1646081422746,5.3593902,98.72,98.62,12.46]
[1646081422948,5.3593902,98.72,98.63,12.46]
[1646081423950,2.74678921,98.719,98.63,12.46]
[1646081424151,163.5,98.717,98.6,92.46]
[1646081424450,1.79381907,98.716,98.6,80.0]
[1646081424651,4.54060828,98.716,98.6,80.0]
[1646081424876,2.74678921,98.715,98.6,80.0]
[1646081425254,2.74678921,98.715,98.601,47.50803655]
[1646081426255,2.74678921,98.715,98.6,80.0]
[1646081426452,61.3,98.709,98.6,80.0]
[1646081426652,1.40187044,98.705,98.6,80.0]
[1646081426852,62.70187044,98.705,98.6,80.0]
[1646081427054,102.2,98.696,98.6,80.0]
[1646081427353,61.3,98.681,98.6,80.0]
[1646081427553,102.2,98.676,98.6,80.0]
[1646081427753,1.55574709,98.675,98.6,80.0]
[1646081428157,4.3025363,98.675,98.6,80.0]
[1646081428456,2.74678921,98.674,98.6,80.0]
[1646081429858,163.5,98.659,98.6,80.0]
[1646081430056,1.54233761,98.658,98.6,80.0]
[1646081430258,4.28912682,98.658,98.6,80.0]
[1646081430560,2.74678921,98.657,98.6,80.0]
[1646081430956,1.80061666,98.698,98.6,80.0]
[1646081431959,4.054,98.684,98.6,82.74678921]
[1646081432160,4.054,98.673,98.6,80.0]
[1646081432563,4.054,98.684,98.6,80.0]
[1646081432968,102.2,98.678,98.6,80.0]
[1646081433168,102.2,98.676,98.6,80.0]
[1646081433371,12.36585419,98.736,98.6,80.0]
[1646081433372,1.6165375,98.675,98.6,80.0]
[1646081433568,103.69206199,98.688,98.6,80.0]
[1646081433769,102.2,98.676,98.6,80.0]
[1646081433972,1.37584825,98.675,98.6,80.0]
[1646081434470,1.48275905,98.666,98.6,80.0]
[1646081435873,2.74678921,98.665,98.6,80.0]
[1646081436475,1.48275905,98.666,98.6,80.0]
[1646081437874,0.98275905,98.666,98.6,80.0]
[1646081438075,0.98275905,98.666,98.6,134.22403438]
[1646081438275,4.054,98.669,98.6,80.0]
[1646081438879,163.5,98.667,98.6,80.0]
[1646081439083,1.87268492,98.666,98.6,80.0]
[1646081439281,1.62360216,98.668,98.6,80.0]
[1646081439479,4.054,98.665,98.6,80.0]
[1646081439888,1.62360216,98.668,98.6,80.0]
[1646081440896,1.62360216,98.668,98.601,53.70517439]
[1646081441297,1.62360216,98.668,98.6,80.0]
[1646081441898,102.2,98.666,98.6,80.0]
[1646081442099,1.46707182,98.665,98.6,80.0]
[1646081443400,1.72819684,98.689,98.601,58.31584855]
[1646081443700,4.054,98.693,98.601,58.31584855]
[1646081444500,4.054,98.69,98.601,58.31584855]
[1646081444802,4.054,98.693,98.601,58.31584855]
[1646081445201,1.53751301,98.715,98.601,58.31584855]